bitfinex/quotes_ETHUSD_20250413
["timestamp","ask_amount","ask_price","bid_price","bid_amount"]
[1744520926017,0.7858,1610.2,1610.0,6.07]
[1744520926813,0.8316,1610.1,1610.0,6.07]
[1744520928047,6.21079,1610.1,1609.7,12.69122]
[1744520928174,0.8316,1609.9,1609.6,6.21266]
[1744520928798,6.21196,1609.8,1609.5,6.21304]
[1744520928978,7.04397,1609.7,1609.4,12.6934]
[1744520929186,7.04397,1609.7,1609.4,6.2134]
[1744520930093,0.7723,1609.6,1609.4,6.2134]
[1744520930421,0.7723,1609.6,1609.2,6.21422]
[1744520930614,0.7723,1609.4,1609.1,6.21461]
[1744520931522,0.8325,1609.2,1608.8,12.6958]
[1744520931691,0.8325,1609.1,1608.8,12.43136]
[1744520931877,0.8325,1609.1,1608.9,6.21523]
[1744520932078,0.8325,1609.1,1609.0,6.21504]
[1744520936209,0.8325,1609.1,1608.9,6.21523]
[1744520936483,7.04745,1609.1,1608.7,6.72616]
[1744520936836,7.02585,1609.0,1608.7,6.72616]
[1744520938230,7.02585,1609.0,1608.7,0.51]
[1744520938418,6.21505,1609.0,1608.7,0.51]
[1744520938616,0.8108,1608.9,1608.7,0.51]
[1744520938940,0.8108,1608.9,1608.7,6.72619]
[1744520939241,0.8108,1608.9,1608.8,6.21581]
[1744520939538,0.8108,1608.9,1608.7,6.72619]
[1744520939709,0.8108,1608.9,1608.7,6.726]
[1744520940035,0.8108,1608.9,1608.7,0.51]
[1744520940446,6.21581,1608.8,1608.7,0.51]
[1744520940748,7.02661,1608.8,1608.7,0.51]
[1744520940896,7.57661,1608.8,1608.7,0.51]
[1744520941824,8.04332719,1608.8,1608.7,0.51]
[1744520942027,8.04332719,1608.8,1608.0,6.21888]
[1744520942028,0.8229,1608.2,1608.0,6.21888]
[1744520942536,0.8229,1608.2,1607.9,12.43839]
[1744520943251,7.745236,1608.2,1607.8,6.21949]
[1744520943548,7.04117,1608.2,1607.8,6.21949]
[1744520943700,0.8229,1608.2,1607.9,6.21927]
[1744520943907,0.8229,1608.2,1608.0,6.21887]
[1744520944522,0.8229,1608.2,1607.9,6.21927]
[1744520944852,1.526966,1608.2,1607.9,6.21927]
[1744520945015,0.8229,1608.0,1607.6,6.2204]
[1744520945203,7.04261,1607.8,1607.4,6.22121]
[1744520945650,6.2201,1607.7,1607.3,6.22159]
[1744520945825,0.8229,1607.6,1607.4,6.22116]
[1744520946009,0.8229,1607.6,1607.5,6.22083]
[1744520946644,0.8229,1607.9,1607.6,6.22029]
[1744520946858,0.8229,1607.9,1607.6,12.44058]
[1744520947012,0.8229,1607.9,1607.6,6.22029]
[1744520947205,6.21948,1607.9,1607.5,6.22072]
[1744520947425,0.8229,1607.7,1607.5,6.22072]
[1744520949012,6.22013,1607.7,1607.3,6.22158]
[1744520949370,0.8229,1607.3,1607.1,6.24232]
[1744520949856,0.8229,1607.5,1607.2,6.222]
[1744520950149,0.8229,1607.5,1607.4,6.22122]
[1744520950320,0.8229,1607.5,1607.3,6.2213]
[1744520950757,7.77476,1607.5,1607.1,6.2423]
[1744520951083,0.8229,1607.4,1607.1,6.2423]
[1744520951479,7.04421,1607.4,1607.1,0.02]
[1744520952045,13.26574,1607.4,1607.1,0.02]
[1744520952247,0.8229,1607.2,1607.1,0.02]
[1744520952478,7.0449,1607.2,1607.1,0.02]
[1744520953660,7.5949,1607.2,1607.1,0.02]
[1744520953866,14.0829,1607.2,1607.1,0.02]
[1744520955674,19.53411441,1607.2,1607.1,0.02]
[1744520955996,20.23818041,1607.2,1607.1,0.02]
[1744520957287,20.23818041,1607.2,1606.2,3.0]
[1744520957288,0.8159,1606.5,1606.2,6.22583]
[1744520957475,0.8159,1606.5,1606.2,12.45155]
[1744520957686,0.8159,1606.5,1606.3,6.22546]
[1744520957851,0.8159,1606.5,1606.4,6.22509]
[1744520958058,0.8159,1606.5,1606.3,6.22524]
[1744520958588,0.8159,1606.5,1606.3,12.45047]
[1744520958998,0.8159,1606.5,1606.3,6.22523]
[1744520959164,0.8159,1606.5,1606.2,6.22569]
[1744520959493,0.8159,1606.3,1606.1,0.02]
[1744520959993,0.8159,1606.3,1606.1,6.24589]
[1744520960320,0.8159,1606.3,1606.1,0.02]
[1744520961594,0.8159,1606.3,1606.1,6.24624]
[1744520962302,10.00367,1606.2,1606.1,0.02]
[1744520962485,11.3820297,1606.2,1606.1,0.02]
[1744520962792,11.85647044,1606.2,1606.1,0.02]
[1744520963093,6.22796,1605.7,1605.3,6.6221474]
[1744520963296,7.00522,1605.8,1605.4,6.22897]
[1744520963503,1.481866,1605.8,1605.5,6.22823]
[1744520963714,6.22783,1605.7,1605.3,6.6223174]
[1744520963915,6.22783,1605.7,1605.3,12.8514774]
[1744520964113,0.7778,1605.6,1605.3,0.3931374]
[1744520964263,0.7778,1605.6,1605.4,6.22896]
[1744520964905,0.7778,1605.6,1605.3,0.3931374]
[1744520965205,7.706592,1605.6,1605.3,0.3931374]
[1744520965787,1.478362,1605.6,1605.3,6.6224874]
[1744520966515,0.7778,1605.6,1605.4,6.22895]
[1744520966812,0.7778,1605.6,1605.5,6.22858]
[1744520967576,0.704066,1605.8,1605.5,12.45702]
[1744520967577,1.486666,1605.8,1605.5,12.45702]
[1744520967776,1.486666,1605.8,1605.5,6.22844]
[1744520968524,1.486666,1605.8,1605.4,6.22892]
[1744520968679,1.486666,1605.8,1605.4,6.22874]
[1744520968988,1.486666,1605.8,1605.5,6.22842]
[1744520969191,1.486666,1605.8,1605.4,12.45748]
[1744520969438,7.714106,1605.8,1605.4,12.45748]
[1744520969700,7.714106,1605.8,1605.4,6.22874]
[1744520970220,0.7826,1605.6,1605.3,0.3931374]
[1744520970420,6.22897,1605.4,1605.3,0.3931374]
[1744520970578,7.01157,1605.4,1605.3,0.3931374]
[1744520970779,0.7826,1605.4,1605.3,0.3931374]
[1744520971279,0.7826,1605.4,1605.3,6.6224974]
[1744520971476,7.56157,1605.4,1605.3,0.3931374]
[1744520971802,8.3494091,1605.4,1605.3,0.3931374]
[1744520972205,11.3494091,1605.4,1605.3,0.3931374]
[1744520973882,11.80859562,1605.4,1605.3,0.3931374]
[1744520976037,18.30559562,1605.4,1605.3,0.3931374]
[1744520977138,18.30559562,1605.4,1605.1,0.02]
[1744520977139,9.22975,1605.2,1605.1,0.02]
[1744520977296,11.255416,1605.2,1605.1,0.02]
[1744520977502,19.81663041,1605.2,1605.1,1e-05]
[1744520977724,20.15548357,1605.2,1605.1,1e-05]
[1744520978423,20.35548357,1605.2,1605.1,1e-05]
[1744520978938,20.15548357,1605.2,1605.1,1e-05]
[1744520979122,19.60548357,1605.2,1605.1,1e-05]
[1744520979295,26.24548357,1605.2,1605.1,1e-05]
[1744520979498,20.79426916,1605.2,1605.1,1e-05]
[1744520979769,20.455416,1605.2,1605.1,1e-05]
[1744520980065,23.455416,1605.2,1605.1,1e-05]
[1744520980410,25.90763041,1605.2,1605.1,1e-05]
[1744520980721,26.45763041,1605.2,1605.1,1e-05]
[1744520981453,6.23281,1604.5,1604.2,0.7693]
[1744520982015,7.4126,1604.6,1604.3,6.23307]
[1744520982222,6.23249,1604.5,1604.2,7.00289]
[1744520982468,7.4126,1604.6,1604.3,6.23311]
[1744520982634,6.641,1604.6,1604.4,6.2327]
[1744520982952,6.23062,1605.0,1604.5,6.23218]
[1744520983154,13.65532,1605.0,1604.6,0.776]
[1744520983456,13.65532,1605.0,1604.6,7.00787]
[1744520983754,13.65532,1605.0,1604.6,13.2398]
[1744520983921,13.65532,1605.0,1604.7,6.23168]
[1744520984123,10.716566,1605.2,1604.8,6.23113]
[1744520984362,17.358566,1605.2,1604.8,12.46228]
[1744520984655,17.358566,1605.2,1604.9,6.23065]
[1744520984656,6.642,1605.2,1604.9,6.23065]
[1744520984959,19.88298,1605.4,1605.0,6.23046]
[1744520985117,6.642,1605.5,1605.0,6.23046]
[1744520985317,0.7827,1605.3,1604.9,0.776]
[1744520985514,6.89321,1605.4,1605.0,6.23032]
[1744520985917,3.7827,1605.6,1605.1,6.23011]
[1744520985918,7.01091,1605.6,1605.1,6.23011]
[1744520986118,6.642,1605.5,1605.2,6.22956]
[1744520986854,6.642,1605.5,1605.3,0.7942]
[1744520987164,6.642,1605.7,1605.5,6.22858]
[1744520987673,13.62799,1606.0,1605.6,6.22817]
[1744520987831,6.642,1606.0,1605.6,12.45622]
[1744520988034,6.642,1606.0,1605.7,6.2278]
[1744520988635,6.642,1606.0,1605.7,7.02183]
[1744520988832,6.642,1606.0,1605.7,0.7942]
[1744520989130,14.155561,1606.0,1605.5,0.7942]
[1744520989336,12.86873,1606.0,1605.6,6.22816]
[1744520989865,12.86873,1606.0,1605.5,7.02263]
[1744520990168,6.22762,1605.8,1605.5,0.7942]
[1744520990464,6.22762,1605.8,1605.4,6.22894]
[1744520990465,6.22762,1605.8,1605.3,7.02355]
[1744520990664,6.22797,1605.7,1605.3,7.02355]
[1744520991370,6.22853,1605.6,1605.3,0.7942]
[1744520991979,6.22887,1605.5,1605.1,0.7968]
[1744520992339,6.22887,1605.5,1605.1,7.02692]
[1744520992666,0.55,1605.4,1605.1,0.7968]
[1744520992969,6.77903,1605.4,1605.1,0.7968]
[1744520993269,12.8693,1605.6,1605.1,7.02676]
[1744520993767,12.8693,1605.6,1605.2,6.22961]
[1744520994070,0.34205602,1605.5,1605.2,6.22961]
[1744520994563,6.57077602,1605.5,1605.1,13.25675]
[1744520994769,6.22872,1605.5,1605.1,7.02676]
[1744520994931,6.22872,1605.5,1605.1,13.25666]
[1744520995135,6.641,1605.6,1605.1,0.7968]
[1744520995373,6.22937,1605.3,1604.9,7.02749]
[1744520995940,12.45898,1605.3,1604.9,7.02749]
[1744520996142,6.23004,1605.2,1604.7,7.02828]
[1744520996476,6.23018,1605.1,1604.7,7.02828]
[1744520996775,12.46135,1605.0,1604.7,0.7968]
[1744520996961,6.23094,1604.9,1604.7,0.7968]
[1744520997170,6.23094,1604.9,1604.5,12.46474]
[1744520997171,6.23094,1604.9,1604.5,13.26154]
[1744520997353,1.246149,1604.9,1604.6,6.23204]
[1744520997551,6.23055,1605.0,1604.6,6.23189]
[1744520997754,12.46131,1605.0,1604.6,6.23189]
[1744520998282,6.23093,1604.9,1604.5,7.02916]
[1744520998883,1.327,1604.8,1604.0,0.45846306]
[1744520999054,6.2328,1604.5,1604.1,0.8168]
[1744520999257,6.85618,1604.4,1604.1,0.8168]
[1744520999457,10.41921441,1604.8,1604.5,6.23246]
[1744520999458,7.418,1604.8,1604.5,6.23246]
[1744520999768,6.641,1604.8,1604.5,7.02925]
[1744520999967,6.641,1604.8,1604.5,0.7968]
[1744521000286,12.87232,1604.8,1604.5,0.7968]
[1744521000586,1.327,1605.0,1604.6,6.23174]
[1744521000885,6.23057,1605.0,1604.6,6.934594]
[1744521001049,12.4614,1605.0,1604.5,13.26147]
[1744521001251,6.23057,1605.0,1604.5,13.26147]
[1744521001573,6.23057,1605.0,1604.6,6.23208]
[1744521001750,6.23094,1604.9,1604.5,7.02904]
[1744521001949,7.477091,1604.9,1604.5,7.02904]
[1744521002881,7.477091,1604.9,1604.5,13.26128]
[1744521002882,1.246151,1604.9,1604.5,13.26128]
[1744521003061,9.23014,1605.1,1604.6,6.23184]
[1744521003250,15.46052,1605.1,1604.7,6.23165]
[1744521003455,15.46052,1605.1,1604.6,6.23184]
[1744521003783,6.57254818,1605.0,1604.6,6.23184]
[1744521004676,16.69239441,1605.2,1604.7,6.23159]
[1744521004880,16.69239441,1605.2,1604.8,6.23109]
[1744521004881,7.4614,1605.2,1604.8,6.23109]
[1744521005483,7.4614,1605.2,1604.8,6.23107]
[1744521005676,6.642,1605.2,1604.8,6.23107]
[1744521005887,6.22822,1605.6,1605.2,6.22961]
[1744521006070,1.64807545,1605.6,1605.3,6.22934]
[1744521006382,4.84409446,1605.7,1605.3,13.29144]
[1744521006554,4.02469446,1605.7,1605.4,6.22893]
[1744521006754,4.02469446,1605.7,1605.4,6.22873]
[1744521007152,4.02469446,1605.7,1605.4,12.45746]
[1744521007460,4.02469446,1605.7,1605.4,6.22873]
[1744521007654,4.02469446,1605.7,1605.3,0.8329]
[1744521007953,2.42110525,1605.7,1605.6,7.0004]
[1744521008949,6.22589,1606.2,1605.7,6.22775]
[1744521009577,6.22626,1606.1,1605.7,6.22775]
[1744521010094,6.22589,1606.2,1605.7,6.22755]
[1744521010252,6.22589,1606.2,1605.7,6.927525]
[1744521010455,0.55,1606.2,1605.6,0.7722]
[1744521010790,0.55,1606.0,1605.4,0.7722]
[1744521010957,6.22768,1605.8,1605.4,0.7722]
[1744521011686,6.22768,1605.8,1605.4,7.00113]
[1744521012089,0.7535,1605.8,1605.2,6.22971]
[1744521012244,6.22808,1605.7,1605.3,6.22928]
[1744521012447,6.98095,1605.8,1605.3,12.45842]
[1744521012893,13.57504,1605.9,1605.5,6.22842]
[1744521012894,6.798,1605.9,1605.5,6.22842]
[1744521013093,6.798,1605.9,1605.6,0.7553]
[1744521013593,13.02506,1605.9,1605.6,0.7553]
[1744521013804,6.798,1605.9,1605.6,0.7553]
[1744521014092,13.02504,1605.9,1605.5,6.22842]
[1744521014457,19.25243,1605.9,1605.4,6.98425]
[1744521014671,6.22766,1605.8,1605.4,0.7553]
[1744521014870,6.22781,1605.7,1605.3,6.22933]
[1744521015081,12.45587,1605.7,1605.2,7.607991]
[1744521015286,6.22824,1605.6,1605.2,7.607991]
[1744521016301,6.22824,1605.6,1605.2,0.7553]
[1744521016457,6.22859,1605.5,1605.0,13.21615]
[1744521016657,6.22859,1605.5,1605.1,6.23013]
[1744521017857,6.22859,1605.5,1605.1,12.4601]
[1744521018702,6.22859,1605.5,1605.1,6.22997]
[1744521018869,7.2463587,1605.5,1605.0,6.9858]
[1744521019073,7.0175,1605.4,1605.0,6.9858]
[1744521019914,59.65619,1606.2,1605.5,6.22857]
[1744521019915,6.22698,1606.0,1605.5,6.22857]
[1744521020091,6.2272,1605.9,1605.4,6.98082]
[1744521020295,6.2272,1605.9,1605.2,13.21125]
[1744521020296,6.22802,1605.7,1605.2,13.21125]
[1744521020495,0.7542,1605.8,1605.5,6.22845]
[1744521020680,0.7542,1606.0,1605.6,6.22798]
[1744521020877,6.98101,1606.0,1605.5,6.22852]
[1744521021088,6.98101,1606.0,1605.6,6.22808]
[1744521021577,6.98101,1606.0,1605.5,12.45675]
[1744521021776,8.601743,1606.0,1605.5,12.45675]
[1744521022184,0.34230529,1605.9,1605.5,12.45675]
[1744521022389,0.34230529,1605.9,1605.5,6.22837]
[1744521022697,6.56952529,1605.9,1605.4,13.20971]
[1744521023204,6.22722,1605.9,1605.4,13.20971]
[1744521023370,6.8698027,1605.9,1605.4,14.530681]
[1744521023703,6.49926955,1606.6,1605.6,7.0106]
[1744521023902,6.22476,1606.5,1606.0,6.22636]
[1744521024114,0.34236523,1606.5,1606.1,6.226]
[1744521024678,0.34236523,1606.5,1606.1,12.45206]
[1744521024908,1.27447483,1606.5,1606.1,6.226]
[1744521026207,6.22679,1606.0,1605.5,0.7824]
[1744521026371,6.22798,1605.7,1605.3,0.7824]
[1744521026706,13.02559,1605.8,1605.3,7.01176]
[1744521026880,6.798,1605.8,1605.4,6.22879]
[1744521027207,3.8223,1606.4,1605.4,0.7824]
[1744521027384,7.04866,1606.1,1605.6,12.45612]
[1744521028192,3.0,1606.2,1605.8,7.00961]
[1744521028396,9.22587,1606.2,1605.8,0.7824]
[1744521028576,10.21471087,1606.2,1605.7,12.45537]
[1744521028905,10.21471087,1606.2,1605.8,6.2274]
[1744521029205,0.8223,1606.3,1606.0,6.22651]
[1744521029769,0.8223,1606.3,1605.9,7.00942]
[1744521030010,0.8223,1606.3,1605.7,13.08015]
[1744521030011,6.2259,1606.2,1605.7,13.08015]
[1744521030193,7.04901,1606.0,1605.6,6.22816]
[1744521030401,0.8223,1606.0,1605.6,12.45615]
[1744521030717,0.8223,1606.0,1605.6,13.780005]
[1744521031220,0.41740636,1605.9,1605.8,6.22727]
[1744521031418,7.6193,1606.2,1605.8,6.22727]
[1744521031721,0.39715573,1606.1,1605.8,6.22727]
[1744521032025,7.6193,1606.2,1605.8,1.245504]
[1744521032317,0.39715573,1606.1,1606.0,6.22662]
[1744521032613,0.7775,1606.4,1606.0,6.22662]
[1744521032804,0.39945483,1606.3,1606.0,6.22662]
[1744521033118,0.39945483,1606.3,1605.9,6.98967]
[1744521033314,0.39945483,1606.3,1605.8,6.2274]
[1744521033522,6.22588,1606.2,1605.8,6.2274]
[1744521033724,6.62526483,1606.3,1605.8,13.776449]
[1744521033927,0.3984596,1606.1,1605.9,6.22702]
[1744521034102,0.39895725,1606.2,1605.9,6.22687]
[1744521034306,7.00279,1606.4,1606.0,6.22648]
[1744521034510,6.22573,1606.3,1605.8,6.22736]
[1744521034818,0.34309418,1606.2,1605.7,0.7629]
[1744521034999,0.34309418,1606.2,1605.9,6.22679]
[1744521035493,20.02422,1606.5,1606.0,6.22664]
[1744521035693,20.02422,1606.5,1605.7,6.99063]
[1744521035694,6.22565,1606.3,1605.8,6.22733]
[1744521035922,13.22974,1606.2,1605.7,6.99063]
[1744521036084,13.62869725,1606.2,1605.7,6.99063]
[1744521036488,0.34302306,1606.1,1605.7,6.99063]
[1744521036803,0.34302306,1606.1,1605.6,13.622035]
[1744521036804,0.39796189,1606.0,1605.6,7.552035]
[1744521037120,0.8102,1605.9,1605.5,7.05835]
[1744521037439,0.39723599,1605.8,1605.5,6.22855]
[1744521037732,6.62469599,1605.8,1605.3,1.4562475]
[1744521038032,0.8102,1605.7,1605.3,6.22904]
[1744521038193,0.39592547,1605.6,1605.4,6.22868]
[1744521038401,0.8102,1605.7,1605.4,12.45749]
[1744521038632,0.39592547,1605.6,1605.4,12.45749]
[1744521038812,0.8102,1605.7,1605.4,13.703239]
[1744521039122,6.22574,1606.3,1605.8,6.22729]
[1744521039304,6.2259,1606.2,1605.8,6.22729]
[1744521039500,0.8102,1606.1,1605.7,6.22761]
[1744521039702,0.8102,1606.1,1605.7,6.850371]
[1744521040433,0.8102,1606.1,1605.7,13.077991]
[1744521040638,0.8102,1606.1,1605.7,6.850371]
[1744521040816,7.03646,1606.1,1605.7,6.850371]
[1744521041021,7.03646,1606.1,1605.6,6.22813]
[1744521041332,0.34299684,1606.0,1605.6,12.45613]
[1744521041537,0.34299684,1606.0,1605.7,6.22767]
[1744521042100,7.03661,1606.1,1605.7,6.22767]
[1744521043435,0.34298264,1606.0,1605.7,6.22767]
[1744521044132,0.8102,1606.1,1605.7,7.473201]
[1744521044320,7.03646,1606.1,1605.7,6.22762]
[1744521045606,0.8102,1606.1,1605.7,6.22762]
[1744521045810,0.34307786,1606.0,1605.7,6.22762]
[1744521046136,0.34307786,1606.0,1605.5,7.05836]
[1744521046333,7.04135,1605.7,1605.2,6.22941]
[1744521046496,7.04135,1605.7,1605.3,0.622941]
[1744521046897,0.34307786,1605.6,1605.2,6.22941]
[1744521047091,6.57148786,1605.6,1605.2,6.22941]
[1744521047330,0.34307786,1605.6,1605.3,6.22929]
[1744521047530,0.8133,1605.7,1605.3,6.22923]
[1744521047729,7.04111,1605.7,1605.3,6.22923]
[1744521047931,0.8133,1605.7,1605.3,6.22918]
[1744521048242,7.04125,1605.7,1605.3,6.22918]
[1744521048751,7.04132,1605.7,1605.3,1.245887]
[1744521048952,7.04132,1605.7,1605.3,7.475027]
[1744521049254,0.3431452,1605.6,1605.5,6.22858]
[1744521049614,13.91339,1605.9,1605.5,6.22858]
[1744521049809,7.6863,1605.9,1605.6,6.22799]
[1744521050222,0.7713,1606.1,1605.7,6.22767]
[1744521050409,6.99698,1606.3,1605.8,13.22174]
[1744521050617,6.99698,1606.3,1605.8,8.316564]
[1744521050924,0.34337745,1606.2,1605.8,14.543854]
[1744521051125,0.70763225,1606.2,1605.8,8.316564]
[1744521051346,0.70763225,1606.2,1605.8,14.543854]
[1744521051639,6.93374225,1606.2,1605.8,7.549574]
[1744521051823,0.34337745,1606.1,1605.8,6.2274]
[1744521052030,0.36325944,1606.0,1605.7,6.22763]
[1744521052245,0.36325944,1606.0,1605.8,6.22739]
[1744521052915,0.36325944,1606.0,1605.7,6.22763]
[1744521053356,6.22626,1606.1,1605.7,6.22763]
[1744521053514,0.36276167,1605.9,1605.7,7.549919]
[1744521053715,0.3433124,1606.0,1605.7,7.549919]
[1744521054055,0.3433124,1606.0,1605.7,13.777529]
[1744521054254,0.36276167,1605.9,1605.8,6.22734]
[1744521054839,6.22606,1606.2,1605.8,12.45468]
[1744521055151,0.36375715,1606.1,1605.8,13.8323769]
[1744521055353,0.36375715,1606.1,1605.9,12.45365]
[1744521055553,0.7713,1606.3,1606.0,6.22665]
[1744521056059,6.9968,1606.3,1605.9,6.22682]
[1744521056363,0.34351854,1606.2,1605.8,13.8323369]
[1744521056523,0.34351854,1606.2,1605.9,1.38323369]
[1744521057155,0.34351854,1606.1,1605.8,6.22725]
[1744521057313,0.34351854,1606.1,1605.7,6.22767]
[1744521057519,0.34351854,1606.1,1605.7,12.45534]
[1744521057827,0.34351854,1606.0,1605.8,6.22725]
[1744521058449,0.34351854,1606.0,1605.9,6.22703]
[1744521058640,6.99642,1606.4,1606.0,6.22658]
[1744521058948,6.22558,1606.3,1605.9,8.862283]
[1744521059337,0.34348612,1606.2,1605.9,15.089113]
[1744521059563,0.34348612,1606.2,1606.0,6.2266]
[1744521059858,0.34348612,1606.1,1606.0,6.2266]
[1744521060053,0.34348612,1606.1,1606.0,7.7354683]
[1744521060950,0.34348612,1606.5,1606.2,6.2258]
[1744521061341,0.34348612,1606.5,1606.1,6.22624]
[1744521061543,6.56819612,1606.5,1606.1,6.22624]
[1744521061738,6.99583,1606.3,1605.8,12.29742]
[1744521061941,6.925693,1606.2,1605.8,6.22721]
[1744521062116,6.925693,1606.2,1605.7,13.2057]
[1744521062514,0.34348612,1606.1,1605.8,6.22736]
[1744521062751,0.34348612,1606.1,1605.8,12.45461]
[1744521062950,0.34348612,1606.1,1605.9,6.22697]
[1744521063160,0.34348612,1606.1,1606.0,6.849347]
[1744521063358,0.34348612,1606.1,1606.0,6.22665]
[1744521063662,0.7702,1606.3,1606.1,6.22623]
[1744521063953,0.7702,1606.3,1606.2,6.22587]
[1744521064158,0.7702,1606.3,1606.1,6.22607]
[1744521064159,0.34324628,1606.3,1606.1,6.22607]
[1744521064524,0.34324628,1606.3,1606.0,6.97681]
[1744521064735,0.34324628,1606.3,1606.0,7.674491]
[1744521064960,6.99508,1606.5,1606.1,6.22611]
[1744521065956,0.34312336,1606.4,1606.1,6.22611]
[1744521066124,0.65258314,1606.4,1606.1,6.22611]
[1744521066561,0.30945978,1606.4,1606.2,6.22562]
[1744521067071,0.30945978,1606.4,1606.2,12.45135]
[1744521067256,6.915,1606.6,1606.3,6.22548]
[1744521067458,0.65296522,1606.5,1606.3,6.22548]
[1744521067640,0.65296522,1606.5,1606.2,6.22586]
[1744521067841,0.65296522,1606.5,1606.0,7.674601]
[1744521068040,7.35572798,1606.4,1605.9,6.22697]
[1744521068260,6.53459225,1606.3,1605.9,6.22697]
[1744521068467,12.76030225,1606.3,1605.8,6.99521]
[1744521068666,0.34300798,1606.2,1605.8,6.99521]
[1744521068844,0.30751376,1606.1,1605.8,6.99521]
[1744521069043,0.34300798,1606.2,1605.8,8.317505]
[1744521069354,0.30751376,1606.1,1605.8,14.544605]
[1744521069554,0.30751376,1606.1,1605.8,14.544645]
[1744521069866,0.30701605,1606.0,1605.8,14.544645]
[1744521070164,12.45147,1606.3,1605.8,8.317345]
[1744521070364,0.30651828,1605.9,1605.8,8.317345]
[1744521070569,13.775347,1606.3,1605.8,8.317345]
[1744521070726,0.30651828,1605.9,1605.8,8.317345]
[1744521070932,13.775347,1606.3,1605.8,8.317345]
[1744521071133,0.30651828,1605.9,1605.6,6.99594]
[1744521071372,6.22681,1606.0,1605.6,6.99594]
[1744521071570,0.30537924,1605.8,1605.6,6.22816]
[1744521071761,0.7873,1606.1,1605.7,7.02501]
[1744521071955,0.7873,1606.1,1605.8,6.22722]
[1744521072766,6.22665,1606.0,1605.6,6.2281]
[1744521073134,0.7873,1606.1,1605.7,6.22762]
[1744521073537,7.01383,1606.1,1605.6,6.22806]
[1744521073753,0.701383,1606.0,1605.6,6.22806]
[1744521074054,6.928033,1606.0,1605.6,6.22806]
[1744521074598,6.928033,1606.0,1605.6,12.45606]
[1744521074782,0.701383,1606.0,1605.7,6.22775]
[1744521075089,0.701383,1606.0,1605.6,6.228]
[1744521075248,6.97801,1605.9,1605.4,9.22882]
[1744521075453,13.9733593,1605.9,1605.4,15.45761]
[1744521075966,0.34315579,1605.8,1605.4,15.45761]
[1744521076199,0.34315579,1605.8,1605.4,6.22879]
[1744521076200,6.57075579,1605.8,1605.4,6.22879]
[1744521076361,6.97875,1605.7,1605.3,6.22935]
[1744521076691,6.97875,1605.7,1605.1,0.7975]
[1744521076692,6.926305,1605.6,1605.1,7.02762]
[1744521076854,13.154875,1605.6,1605.1,13.25753]
[1744521077056,6.22866,1605.5,1605.1,6.22991]
[1744521077265,0.7892,1605.4,1605.1,6.22991]
[1744521078762,7.01825,1605.4,1605.0,6.23051]
[1744521079071,1.5867014,1605.4,1605.0,12.46088]
[1744521079372,1.5867014,1605.4,1605.1,6.22987]
[1744521079598,1.5867014,1605.4,1605.1,12.45977]
[1744521079889,1.5867014,1605.4,1605.1,6.22987]
[1744521080392,1.5867014,1605.4,1605.0,12.46078]
[1744521080600,0.7892,1605.4,1605.1,6.22989]
[1744521080956,0.7892,1605.4,1605.2,6.22954]
[1744521081151,0.2978131,1605.3,1605.2,6.22954]
[1744521081594,0.7892,1605.4,1605.2,6.22954]
[1744521081752,0.2978131,1605.3,1605.2,6.22954]
[1744521082168,0.7892,1605.4,1605.2,6.22954]
[1744521082397,0.2978131,1605.3,1605.2,6.22954]
[1744521082697,0.7892,1605.4,1605.2,12.45908]
[1744521082900,0.2978131,1605.3,1605.2,6.22954]
[1744521083088,0.2978131,1605.3,1605.2,11.05727916]
[1744521083268,0.7892,1605.8,1605.5,6.2283]
[1744521083472,0.22816924,1605.7,1605.6,6.2282]
[1744521083682,0.45798174,1605.9,1605.6,6.2282]
[1744521083890,0.22873575,1605.8,1605.6,6.2282]
[1744521084086,0.22873575,1605.8,1605.6,6.22819]
[1744521084270,0.7892,1606.0,1605.7,6.22758]
[1744521084469,7.6252,1606.2,1605.9,6.22693]
[1744521084687,7.6252,1606.2,1606.0,6.22656]
[1744521085510,7.6252,1606.2,1605.9,12.4538]
[1744521085703,6.14461305,1606.4,1606.1,6.22626]
[1744521085870,0.7892,1606.4,1606.2,6.22586]
[1744521086720,0.7892,1606.4,1605.9,6.22681]
[1744521087010,6.56813629,1606.3,1605.9,6.22681]
[1744521087305,0.7512,1606.1,1605.6,8.340991]
[1744521087460,0.7512,1606.1,1605.7,12.45529]
[1744521087666,0.7512,1606.1,1605.8,6.22721]
[1744521087891,0.7512,1606.1,1605.9,6.22703]
[1744521088108,0.55,1606.2,1605.6,2.113171]
[1744521088414,0.7512,1606.0,1605.7,6.2278]
[1744521088795,0.7512,1606.0,1605.7,12.4554]
[1744521089095,6.2264,1606.1,1605.7,6.22776]
[1744521089654,6.2264,1606.1,1605.7,6.22779]
[1744521089794,20.0382,1606.2,1605.7,6.22779]
[1744521090308,0.34271949,1606.1,1605.6,0.7897]
[1744521090466,0.34271949,1606.1,1605.9,6.22672]
[1744521090665,0.34271949,1606.1,1606.0,6.849322]
[1744521090966,6.22591,1606.2,1605.8,6.22739]
[1744521091569,6.22591,1606.2,1605.7,6.22781]
[1744521091570,6.99681,1606.1,1605.7,6.22781]
[1744521092083,6.99681,1606.1,1605.6,7.01787]
[1744521092084,12.45363,1606.0,1605.6,6.22817]
[1744521092284,0.7705,1605.6,1605.1,0.7879]
[1744521092597,7.698597,1605.6,1605.2,6.22958]
[1744521092799,6.2288,1605.5,1605.1,6.23008]
[1744521093191,6.9995,1605.4,1605.0,7.554368]
[1744521093370,0.7705,1605.4,1605.0,12.46078]
[1744521093669,0.7705,1605.4,1605.1,6.23014]